[Event "*** Titled Tuesday Blitz"]
[Site "Chess.com"]
[Date "2018.12.04"]
[Round "2"]
[White "AndrewMcStone"]
[Black "IngOscarArdila"]
[Result "1/2-1/2"]
[WhiteElo "2134"]
[BlackElo "2219"]
[TimeControl "180+2"]
[EndTime "13:28:39 PST"]
[Termination "Game drawn by agreement"]

1. d4 {[%clk 0:03:01.9]} 1... Nf6 {[%clk 0:02:59.7]} 2. c4 {[%clk 0:03:02.8]}
2... g6 {[%clk 0:03:00.5]} 3. Nc3 {[%clk 0:03:04.2]} 3... Bg7 {[%clk 0:03:01.4]}
4. e4 {[%clk 0:03:05.5]} 4... d6 {[%clk 0:03:02]} 5. Nge2 {[%clk 0:03:06.8]}
5... O-O {[%clk 0:03:02.7]} 6. Ng3 {[%clk 0:03:08.1]} 6... e5 {[%clk 0:03:03.3]}
7. d5 {[%clk 0:03:09.3]} 7... a5 {[%clk 0:03:03.1]} 8. Be2 {[%clk 0:03:10.5]}
8... Na6 {[%clk 0:03:03.7]} 9. h4 {[%clk 0:03:12]} 9... h5 {[%clk 0:02:56.9]}
10. Bg5 {[%clk 0:03:11.9]} 10... Qe8 {[%clk 0:02:55.8]} 11. Qd2 {[%clk
0:02:48.5]} 11... Bd7 {[%clk 0:02:55.3]} 12. O-O-O {[%clk 0:02:40.3]} 12... Nc5
{[%clk 0:02:55.7]} 13. f3 {[%clk 0:02:28.7]} 13... Nh7 {[%clk 0:02:51.8]} 14.
Bh6 {[%clk 0:02:02.7]} 14... Qe7 {[%clk 0:02:45.8]} 15. Nf1 {[%clk 0:01:46.4]}
15... Nf6 {[%clk 0:02:41]} 16. Bg5 {[%clk 0:01:35.8]} 16... Qe8 {[%clk
0:02:41.3]} 17. Nh2 {[%clk 0:01:18.8]} 17... Nh7 {[%clk 0:02:41]} 18. Bh6 {[%clk
0:01:16.1]} 18... Nf6 {[%clk 0:02:41.7]} 19. Rdg1 {[%clk 0:00:43.3]} 19... Rb8
{[%clk 0:02:35.5]} 20. Bxg7 {[%clk 0:00:40.8]} 20... Kxg7 {[%clk 0:02:35.9]} 21.
g4 {[%clk 0:00:42.3]} 21... hxg4 {[%clk 0:02:32.1]} 22. h5 {[%clk 0:00:27.9]}
22... Rh8 {[%clk 0:02:25.5]} 23. hxg6 {[%clk 0:00:24.1]} 23... fxg6 {[%clk
0:02:22.6]} 24. fxg4 {[%clk 0:00:14.5]} 24... Nfxe4 {[%clk 0:02:17.5]} 25. Nxe4
{[%clk 0:00:12.7]} 25... Nxe4 {[%clk 0:02:18.1]} 26. Qe3 {[%clk 0:00:12.2]}
26... Nc5 {[%clk 0:02:14.4]} 27. g5 {[%clk 0:00:11.1]} 27... Bf5 {[%clk
0:02:13.4]} 28. Ng4 {[%clk 0:00:09.9]} 28... Bxg4 {[%clk 0:02:12.6]} 29. Bxg4
{[%clk 0:00:09.8]} 29... Qe7 {[%clk 0:02:11.9]} 30. Rh6 {[%clk 0:00:09.9]} 30...
Rxh6 {[%clk 0:02:01.8]} 31. gxh6+ {[%clk 0:00:10.5]} 31... Kh7 {[%clk
0:02:03.1]} 32. Bd1 {[%clk 0:00:08]} 32... Rg8 {[%clk 0:01:59]} 33. Bc2 {[%clk
0:00:08.5]} 33... e4 {[%clk 0:02:00.1]} 34. Qd4 {[%clk 0:00:08.5]} 34... Qe5
{[%clk 0:01:41.9]} 35. Qxe5 {[%clk 0:00:08.1]} 35... dxe5 {[%clk 0:01:42.9]} 36.
Re1 {[%clk 0:00:06.6]} 36... Kxh6 {[%clk 0:01:42.8]} 37. Bxe4 {[%clk 0:00:08]}
37... g5 {[%clk 0:01:40.1]} 38. Bf5 {[%clk 0:00:06.7]} 38... g4 {[%clk
0:01:39.6]} 39. Rxe5 {[%clk 0:00:06.3]} 39... g3 {[%clk 0:01:38.2]} 40. Re1
{[%clk 0:00:06.3]} 40... Kg5 {[%clk 0:01:37.6]} 41. Be6 {[%clk 0:00:04.1]} 41...
Nxe6 {[%clk 0:01:32.9]} 42. dxe6 {[%clk 0:00:04.8]} 42... Kf6 {[%clk 0:01:34.5]}
43. e7 {[%clk 0:00:05.3]} 43... Re8 {[%clk 0:01:29.5]} 44. Rg1 {[%clk 0:00:06]}
44... Rxe7 {[%clk 0:01:25.9]} 45. Rxg3 {[%clk 0:00:06.5]} 45... Kf5 {[%clk
0:01:27.6]} 46. Rg2 {[%clk 0:00:07.1]} 46... Kf4 {[%clk 0:01:28.1]} 47. Kc2
{[%clk 0:00:08.5]} 47... Kf3 {[%clk 0:01:27.4]} 48. Rd2 {[%clk 0:00:09.3]} 48...
Ke3 {[%clk 0:01:27]} 49. Rd3+ {[%clk 0:00:09.4]} 49... Ke4 {[%clk 0:01:27.3]}
50. Rd2 {[%clk 0:00:10.6]} 50... Rh7 {[%clk 0:01:24.6]} 51. a3 {[%clk
0:00:08.5]} 51... b6 {[%clk 0:01:22.4]} 52. b3 {[%clk 0:00:08.2]} 52... Ke5
{[%clk 0:01:21.3]} 53. Rd5+ {[%clk 0:00:08.5]} 53... Ke4 {[%clk 0:01:21.2]} 54.
Rd2 {[%clk 0:00:09.6]} 54... Rf7 {[%clk 0:01:20.8]} 55. Re2+ {[%clk 0:00:10.3]}
55... Kd4 {[%clk 0:01:21.4]} 56. Rd2+ {[%clk 0:00:11.4]} 56... Kc5 {[%clk
0:01:22.2]} 57. Kc3 {[%clk 0:00:11.8]} 57... Rf3+ {[%clk 0:01:22.3]} 58. Rd3
{[%clk 0:00:13]} 58... Rf1 {[%clk 0:01:23.2]} 59. b4+ {[%clk 0:00:13.8]} 59...
axb4+ {[%clk 0:01:18.7]} 60. axb4+ {[%clk 0:00:15.7]} 60... Kc6 {[%clk
0:01:19.6]} 61. b5+ {[%clk 0:00:17]} 61... Kb7 {[%clk 0:01:18.6]} 62. Rd7 {[%clk
0:00:16.1]} 62... Rf4 {[%clk 0:01:16.1]} 63. Rh7 {[%clk 0:00:15.7]} 63... Rg4
{[%clk 0:01:16.8]} 64. Kd3 {[%clk 0:00:16.3]} 64... Rf4 {[%clk 0:01:17.3]} 65.
Kc3 {[%clk 0:00:16]} 65... Re4 {[%clk 0:01:17.6]} 66. Kd3 {[%clk 0:00:16.9]}
66... Rg4 {[%clk 0:01:18.3]} 67. Kc3 {[%clk 0:00:17.6]} 67... Kc8 {[%clk
0:01:19]} 68. Kd3 {[%clk 0:00:17]} 68... Rf4 {[%clk 0:01:18.2]} 69. Kc3 {[%clk
0:00:17.6]} 69... Kd8 {[%clk 0:01:18.6]} 70. Kd3 {[%clk 0:00:16.3]} 70... Rf1
{[%clk 0:01:18.4]} 71. Kd4 {[%clk 0:00:15.3]} 71... Rd1+ {[%clk 0:01:18.4]} 72.
Kc3 {[%clk 0:00:13.1]} 72... Rd6 {[%clk 0:01:15.2]} 73. Kb4 {[%clk 0:00:13]}
73... Kc8 {[%clk 0:01:12.8]} 74. Rg7 {[%clk 0:00:13.8]} 74... Rd4 {[%clk
0:01:12.1]} 75. Rh7 {[%clk 0:00:14.7]} 75... Kb7 {[%clk 0:01:08.6]} 76. Kc3
{[%clk 0:00:15.8]} 76... Rd1 {[%clk 0:01:08]} 77. Kb4 {[%clk 0:00:10.2]} 77...
Rd4 {[%clk 0:01:02.4]} 78. Rg7 {[%clk 0:00:10.3]} 78... Kc8 {[%clk 0:01:01.9]}
79. Rh7 {[%clk 0:00:11.5]} 79... Rd1 {[%clk 0:01:00.2]} 80. Rg7 {[%clk
0:00:12.7]} 80... Rd7 {[%clk 0:00:56.2]} 81. Rxd7 {[%clk 0:00:12.8]} 81... Kxd7
{[%clk 0:00:57.1]} 82. c5 {[%clk 0:00:12.8]} 82... Ke6 {[%clk 0:00:53.8]} 83.
Kc4 {[%clk 0:00:13.2]} 83... Ke5 {[%clk 0:00:53.8]} 84. cxb6 {[%clk 0:00:12]}
84... cxb6 {[%clk 0:00:54.3]} 85. Kc3 {[%clk 0:00:11.6]} 85... Kd5 {[%clk
0:00:51.4]} 86. Kb4 {[%clk 0:00:12.6]} 86... Kd4 {[%clk 0:00:52.1]} 87. Kb3
{[%clk 0:00:13.2]} 87... Kc5 {[%clk 0:00:51.7]} 88. Ka4 {[%clk 0:00:14.3]} 88...
Kc4 {[%clk 0:00:52.5]} 89. Ka3 {[%clk 0:00:15.7]} 89... Kxb5 {[%clk 0:00:53.4]}
90. Kb3 {[%clk 0:00:17.6]} 90... Kc5 {[%clk 0:00:54.2]} 91. Kc3 {[%clk
0:00:19.1]} 91... Kb5 {[%clk 0:00:50.7]} 92. Kb3 {[%clk 0:00:20.1]} 92... Ka5
{[%clk 0:00:52.2]} 93. Ka3 {[%clk 0:00:21.3]} 93... Kb5 {[%clk 0:00:53.1]} 94.
Kb3 {[%clk 0:00:22.7]} 94... Kc5 {[%clk 0:00:53.2]} 95. Kc3 {[%clk 0:00:23.9]}
95... b5 {[%clk 0:00:54.1]} 96. Kb3 {[%clk 0:00:24.7]} 96... b4 {[%clk
0:00:40.4]} 97. Kb2 {[%clk 0:00:25.2]} 97... Kb5 {[%clk 0:00:28.5]} 98. Kb3
{[%clk 0:00:25.4]} 98... Kc5 {[%clk 0:00:28.5]} 99. Kb2 {[%clk 0:00:26.3]} 99...
Kb6 {[%clk 0:00:29.9]} 100. Kb3 {[%clk 0:00:25.3]} 100... Kb5 {[%clk 0:00:30.8]}
101. Kb2 {[%clk 0:00:24.6]} 101... Kc4 {[%clk 0:00:30.1]} 102. Kc2 {[%clk
0:00:25.5]} 102... b3+ {[%clk 0:00:29.7]} 103. Kb2 {[%clk 0:00:26.5]} 103... Kb4
{[%clk 0:00:30.7]} 104. Kb1 {[%clk 0:00:27.6]} 104... Kc4 {[%clk 0:00:30.9]}
105. Kb2 {[%clk 0:00:27.9]} 105... Kb4 {[%clk 0:00:32]} 106. Kb1 {[%clk
0:00:29.2]} 106... Kc3 {[%clk 0:00:31.7]} 107. Kc1 {[%clk 0:00:30.2]} 107... Kb4
{[%clk 0:00:32.2]} 108. Kb2 {[%clk 0:00:30.9]} 108... Ka4 {[%clk 0:00:33.5]}
109. Kb1 {[%clk 0:00:29]} 109... Ka3 {[%clk 0:00:34.3]} 110. Ka1 {[%clk
0:00:29.6]} 110... Kb4 {[%clk 0:00:33.3]} 111. Kb2 {[%clk 0:00:30.7]} 111... Kc4
{[%clk 0:00:34.3]} 112. Kb1 {[%clk 0:00:28.5]} 112... Kd3 {[%clk 0:00:33.1]}
113. Kb2 {[%clk 0:00:28.8]} 113... Kc4 {[%clk 0:00:34]} 114. Kb1 {[%clk
0:00:30.1]} 114... Kc3 {[%clk 0:00:32.6]} 115. Kc1 {[%clk 0:00:30.5]} 1/2-1/2

[Event "*** Titled Tuesday Blitz"]
[Site "Chess.com"]
[Date "2018.12.04"]
[Round "3"]
[White "Hydrargyrum_Girl"]
[Black "jocmil"]
[Result "1/2-1/2"]
[WhiteElo "2528"]
[BlackElo "2490"]
[TimeControl "180+2"]
[EndTime "13:31:05 PST"]
[Termination "Game drawn by agreement"]

1. Nf3 {[%clk 0:03:01.9]} 1... d5 {[%clk 0:02:59.4]} 2. g3 {[%clk 0:03:02.4]}
2... Nf6 {[%clk 0:02:59.4]} 3. Bg2 {[%clk 0:03:02.6]} 3... c6 {[%clk 0:03:00]}
4. O-O {[%clk 0:03:03.5]} 4... Bg4 {[%clk 0:03:01.3]} 5. Ne5 {[%clk 0:03:03.8]}
5... Bf5 {[%clk 0:03:00.1]} 6. c4 {[%clk 0:03:04.7]} 6... e6 {[%clk 0:02:58.7]}
7. d4 {[%clk 0:03:05.7]} 7... Nbd7 {[%clk 0:02:58]} 8. Nxd7 {[%clk 0:03:06.5]}
8... Qxd7 {[%clk 0:02:58.7]} 9. Nc3 {[%clk 0:03:06.4]} 9... Be7 {[%clk
0:02:55.1]} 10. Qb3 {[%clk 0:03:01.6]} 10... O-O {[%clk 0:02:54.4]} 11. Bg5
{[%clk 0:03:02]} 11... Rad8 {[%clk 0:02:47.1]} 12. e3 {[%clk 0:02:58.2]} 12...
Bd3 {[%clk 0:02:38.6]} 13. Nxd5 {[%clk 0:02:54.7]} 13... Bxf1 {[%clk 0:02:33.5]}
14. Nxe7+ {[%clk 0:02:55.5]} 14... Qxe7 {[%clk 0:02:31.4]} 15. Rxf1 {[%clk
0:02:54]} 15... Rd7 {[%clk 0:02:19]} 1/2-1/2

[Event "*** Titled Tuesday Blitz"]
[Site "Chess.com"]
[Date "2018.12.04"]
[Round "3"]
[White "colegiodemadrid"]
[Black "HanSchut"]
[Result "0-1"]
[WhiteElo "2276"]
[BlackElo "2322"]
[TimeControl "180+2"]
[EndTime "13:31:12 PST"]
[Termination "HanSchut won by resignation"]

1. e4 {[%clk 0:03:01.9]} 1... c5 {[%clk 0:03:00.6]} 2. Nf3 {[%clk 0:03:02.4]}
2... d6 {[%clk 0:03:01.9]} 3. d4 {[%clk 0:03:03.9]} 3... cxd4 {[%clk 0:03:03.2]}
4. Nxd4 {[%clk 0:03:05.3]} 4... Nf6 {[%clk 0:03:04.7]} 5. Nc3 {[%clk 0:03:06.9]}
5... a6 {[%clk 0:03:06.1]} 6. Bg5 {[%clk 0:03:08]} 6... e6 {[%clk 0:03:07.1]} 7.
f4 {[%clk 0:03:09.5]} 7... Be7 {[%clk 0:03:08]} 8. Qf3 {[%clk 0:03:09.8]} 8...
h6 {[%clk 0:03:08.9]} 9. Bh4 {[%clk 0:03:10.2]} 9... g5 {[%clk 0:03:09.9]} 10.
fxg5 {[%clk 0:03:10.4]} 10... Nfd7 {[%clk 0:03:11.5]} 11. Qh5 {[%clk 0:02:58.7]}
11... Ne5 {[%clk 0:03:11.6]} 12. Nf3 {[%clk 0:02:45.8]} 12... Ng6 {[%clk
0:02:51.3]} 13. g3 {[%clk 0:02:33]} 13... hxg5 {[%clk 0:02:45.6]} 14. Qg4 {[%clk
0:02:28.1]} 14... e5 {[%clk 0:02:36.5]} 0-1

[Event "*** Titled Tuesday Blitz"]
[Site "Chess.com"]
[Date "2018.12.04"]
[Round "3"]
[White "LonesomeGeorge1"]
[Black "c63_amg"]
[Result "0-1"]
[WhiteElo "2413"]
[BlackElo "2617"]
[TimeControl "180+2"]
[EndTime "13:32:15 PST"]
[Termination "c63_amg won by resignation"]

1. d4 {[%clk 0:03:01.9]} 1... Nf6 {[%clk 0:03:00.8]} 2. Nf3 {[%clk 0:03:03]}
2... e6 {[%clk 0:03:02.7]} 3. e3 {[%clk 0:03:02.7]} 3... c5 {[%clk 0:03:03.2]}
4. Bd3 {[%clk 0:03:03.7]} 4... Nc6 {[%clk 0:03:04.8]} 5. O-O {[%clk 0:03:02]}
5... d5 {[%clk 0:03:06.4]} 6. b3 {[%clk 0:03:01.8]} 6... Bd6 {[%clk 0:03:07.4]}
7. Bb2 {[%clk 0:03:02.2]} 7... O-O {[%clk 0:03:08.7]} 8. Nbd2 {[%clk 0:03:02.6]}
8... b6 {[%clk 0:03:07.1]} 9. Ne5 {[%clk 0:03:00.1]} 9... Bb7 {[%clk 0:03:07.8]}
10. a3 {[%clk 0:02:50.4]} 10... Rc8 {[%clk 0:03:08.1]} 11. Qe2 {[%clk
0:02:44.4]} 11... Ne7 {[%clk 0:02:48.5]} 12. c4 {[%clk 0:02:35.9]} 12... Ne4
{[%clk 0:02:24.6]} 13. cxd5 {[%clk 0:02:31.3]} 13... Nxd2 {[%clk 0:02:16.5]} 14.
Qxd2 {[%clk 0:02:15.1]} 14... cxd4 {[%clk 0:02:16.6]} 15. Bxd4 {[%clk
0:02:04.5]} 15... Bxe5 {[%clk 0:02:17.5]} 16. Bxe5 {[%clk 0:01:43]} 16... Qxd5
{[%clk 0:02:18.6]} 0-1

[Event "*** Titled Tuesday Blitz"]
[Site "Chess.com"]
[Date "2018.12.04"]
[Round "3"]
[White "Phelathegreat"]
[Black "Kawhi_Leonard2"]
[Result "0-1"]
[WhiteElo "2326"]
[BlackElo "2290"]
[TimeControl "180+2"]
[EndTime "13:32:48 PST"]
[Termination "Kawhi_Leonard2 won on time"]

1. d4 {[%clk 0:02:55.5]} 1... Nf6 {[%clk 0:03:00.4]} 2. c4 {[%clk 0:01:25.4]}
2... c5 {[%clk 0:03:00.3]} 3. d5 {[%clk 0:01:26.5]} 3... e6 {[%clk 0:03:01.6]}
4. Nc3 {[%clk 0:01:27.8]} 4... exd5 {[%clk 0:03:02.9]} 5. cxd5 {[%clk
0:01:28.8]} 5... d6 {[%clk 0:03:04.8]} 6. Nf3 {[%clk 0:01:27.3]} 6... g6 {[%clk
0:03:06.2]} 7. h3 {[%clk 0:01:25.5]} 7... Bg7 {[%clk 0:03:07.5]} 8. a4 {[%clk
0:01:23.7]} 8... a6 {[%clk 0:03:08.1]} 9. Bf4 {[%clk 0:01:23.8]} 9... O-O {[%clk
0:03:01.7]} 10. e3 {[%clk 0:01:18.8]} 10... Ne8 {[%clk 0:03:02.7]} 0-1

[Event "*** Titled Tuesday Blitz"]
[Site "Chess.com"]
[Date "2018.12.04"]
[Round "3"]
[White "pedromartinez91"]
[Black "nOcHeaTiNgKiD"]
[Result "1-0"]
[WhiteElo "2395"]
[BlackElo "2418"]
[TimeControl "180+2"]
[EndTime "13:33:16 PST"]
[Termination "pedromartinez91 won by resignation"]

1. Nf3 {[%clk 0:03:00.4]} 1... d5 {[%clk 0:02:59.9]} 2. g3 {[%clk 0:03:01]} 2...
c6 {[%clk 0:03:00.8]} 3. Bg2 {[%clk 0:03:01.4]} 3... Bg4 {[%clk 0:03:02.2]} 4.
O-O {[%clk 0:03:03.1]} 4... Nd7 {[%clk 0:03:02.7]} 5. c4 {[%clk 0:03:02.6]} 5...
e6 {[%clk 0:03:03.9]} 6. cxd5 {[%clk 0:03:03.4]} 6... exd5 {[%clk 0:03:05.2]} 7.
d3 {[%clk 0:03:04.3]} 7... Ngf6 {[%clk 0:03:06.2]} 8. Nc3 {[%clk 0:03:05]} 8...
Bc5 {[%clk 0:03:06]} 9. Qc2 {[%clk 0:03:05.1]} 9... O-O {[%clk 0:03:06.7]} 10.
e4 {[%clk 0:03:05.9]} 10... Re8 {[%clk 0:03:05.6]} 11. h3 {[%clk 0:03:00]} 11...
Bh5 {[%clk 0:03:04.1]} 12. Nh4 {[%clk 0:02:59.2]} 12... dxe4 {[%clk 0:02:56.3]}
13. dxe4 {[%clk 0:02:59.8]} 13... Bg6 {[%clk 0:02:44.9]} 14. Kh2 {[%clk
0:02:45.1]} 14... Bd4 {[%clk 0:02:25.9]} 15. Nxg6 {[%clk 0:02:30.7]} 15... hxg6
{[%clk 0:02:25.3]} 16. f4 {[%clk 0:02:28.2]} 16... Qa5 {[%clk 0:02:12.8]} 17. e5
{[%clk 0:02:29]} 17... Nd5 {[%clk 0:02:08.4]} 18. Nxd5 {[%clk 0:02:28.5]} 18...
cxd5 {[%clk 0:02:09.3]} 19. Qd3 {[%clk 0:02:28.7]} 19... Qb6 {[%clk 0:02:02.6]}
20. Rd1 {[%clk 0:02:25.6]} 20... Bc5 {[%clk 0:02:02.3]} 21. b4 {[%clk 0:02:24]}
21... Qxb4 {[%clk 0:02:00.2]} 22. Rb1 {[%clk 0:02:23.7]} 22... Qa4 {[%clk
0:01:53.9]} 23. Qxd5 {[%clk 0:02:24]} 23... Rad8 {[%clk 0:01:50]} 24. Qb3 {[%clk
0:02:14.4]} 24... Qxb3 {[%clk 0:01:31.5]} 25. Rxb3 {[%clk 0:02:12.6]} 25... b6
{[%clk 0:01:31.4]} 26. Rbd3 {[%clk 0:02:12.7]} 26... Nxe5 {[%clk 0:01:29.7]} 27.
Rxd8 {[%clk 0:02:11.6]} 27... Nf3+ {[%clk 0:01:31.6]} 1-0

[Event "*** Titled Tuesday Blitz"]
[Site "Chess.com"]
[Date "2018.12.04"]
[Round "3"]
[White "Winehouse83"]
[Black "anesar92"]
[Result "0-1"]
[WhiteElo "2449"]
[BlackElo "2679"]
[TimeControl "180+2"]
[EndTime "13:34:10 PST"]
[Termination "anesar92 won by resignation"]

1. d4 {[%clk 0:03:01.9]} 1... d5 {[%clk 0:03:00.7]} 2. c4 {[%clk 0:03:02.3]}
2... dxc4 {[%clk 0:03:02.6]} 3. e4 {[%clk 0:03:03]} 3... Nf6 {[%clk 0:03:03.7]}
4. e5 {[%clk 0:03:04.3]} 4... Nd5 {[%clk 0:03:05.3]} 5. Bxc4 {[%clk 0:03:05.9]}
5... Nb6 {[%clk 0:03:06.8]} 6. Bd3 {[%clk 0:03:07.3]} 6... Nc6 {[%clk
0:03:08.2]} 7. Ne2 {[%clk 0:03:08.5]} 7... Be6 {[%clk 0:03:09]} 8. O-O {[%clk
0:03:00.2]} 8... Nb4 {[%clk 0:03:07.5]} 9. Be4 {[%clk 0:02:51.9]} 9... Bd5
{[%clk 0:03:08.2]} 10. Nbc3 {[%clk 0:02:48.9]} 10... Bxe4 {[%clk 0:03:08.1]} 11.
Nxe4 {[%clk 0:02:49.4]} 11... e6 {[%clk 0:03:09.6]} 12. Bg5 {[%clk 0:02:46.2]}
12... Be7 {[%clk 0:03:09.6]} 13. Bxe7 {[%clk 0:02:43.6]} 13... Qxe7 {[%clk
0:03:11.5]} 14. a3 {[%clk 0:02:44.5]} 14... N4d5 {[%clk 0:03:12.2]} 15. Nc5
{[%clk 0:02:45.5]} 15... c6 {[%clk 0:03:12.4]} 16. Nc3 {[%clk 0:02:44.2]} 16...
Rd8 {[%clk 0:03:11.4]} 17. N3e4 {[%clk 0:02:42.9]} 17... Nc8 {[%clk 0:03:05.7]}
18. b4 {[%clk 0:02:18.6]} 18... O-O {[%clk 0:03:05.6]} 19. Rc1 {[%clk
0:02:18.4]} 19... b6 {[%clk 0:02:51.3]} 20. Nb3 {[%clk 0:02:14.3]} 20... Qb7
{[%clk 0:02:49.8]} 21. Qc2 {[%clk 0:02:13.3]} 21... Nde7 {[%clk 0:02:50.3]} 22.
Rfd1 {[%clk 0:02:03.1]} 22... Rd5 {[%clk 0:02:49.4]} 23. Rd3 {[%clk 0:02:02.6]}
23... Rfd8 {[%clk 0:02:45.8]} 24. Rh3 {[%clk 0:01:54.4]} 24... Nf5 {[%clk
0:02:28.2]} 25. g4 {[%clk 0:01:44.6]} 25... Nxd4 {[%clk 0:02:28.4]} 26. Nxd4
{[%clk 0:01:38.3]} 26... Rxd4 {[%clk 0:02:30.3]} 27. Nd6 {[%clk 0:01:23.9]}
27... Nxd6 {[%clk 0:02:27.3]} 28. Qxh7+ {[%clk 0:01:21.7]} 28... Kf8 {[%clk
0:02:28.5]} 29. exd6 {[%clk 0:01:14.7]} 29... R8xd6 {[%clk 0:02:26]} 30. Qh8+
{[%clk 0:01:13.6]} 30... Ke7 {[%clk 0:02:27]} 31. Qxg7 {[%clk 0:01:14]} 31... c5
{[%clk 0:02:28.5]} 32. Rg3 {[%clk 0:00:55.3]} 32... Rd1+ {[%clk 0:02:26.3]} 0-1

[Event "*** Titled Tuesday Blitz"]
[Site "Chess.com"]
[Date "2018.12.04"]
[Round "3"]
[White "joppie2"]
[Black "Mikhail_Golubev"]
[Result "1-0"]
[WhiteElo "2719"]
[BlackElo "2465"]
[TimeControl "180+2"]
[EndTime "13:34:17 PST"]
[Termination "joppie2 won by resignation"]

1. e4 {[%clk 0:03:01.9]} 1... c5 {[%clk 0:03:00.2]} 2. Nf3 {[%clk 0:03:02]} 2...
d6 {[%clk 0:03:01.3]} 3. d4 {[%clk 0:03:02.4]} 3... cxd4 {[%clk 0:03:02.3]} 4.
Nxd4 {[%clk 0:02:59.8]} 4... Nf6 {[%clk 0:03:02.9]} 5. Nc3 {[%clk 0:02:59.6]}
5... g6 {[%clk 0:03:04.3]} 6. Be3 {[%clk 0:02:51]} 6... Bg7 {[%clk 0:02:48.5]}
7. f3 {[%clk 0:02:44.4]} 7... a6 {[%clk 0:02:38.9]} 8. Qd2 {[%clk 0:02:39.9]}
8... h5 {[%clk 0:02:39.9]} 9. Be2 {[%clk 0:02:39.5]} 9... Nbd7 {[%clk
0:02:33.9]} 10. O-O {[%clk 0:02:38.8]} 10... b5 {[%clk 0:02:19]} 11. a4 {[%clk
0:02:37.1]} 11... b4 {[%clk 0:02:10.4]} 12. Nd5 {[%clk 0:02:38.4]} 12... Nxd5
{[%clk 0:01:59.2]} 13. exd5 {[%clk 0:02:40.3]} 13... Bb7 {[%clk 0:02:00.3]} 14.
Nc6 {[%clk 0:02:17.2]} 14... Bxc6 {[%clk 0:01:50.8]} 15. dxc6 {[%clk 0:02:19.1]}
15... Ne5 {[%clk 0:01:51.7]} 16. f4 {[%clk 0:02:17.2]} 16... Nxc6 {[%clk
0:01:36.5]} 17. f5 {[%clk 0:02:17.9]} 17... Ne5 {[%clk 0:01:12.1]} 18. fxg6
{[%clk 0:02:18.3]} 18... fxg6 {[%clk 0:01:09.7]} 19. Qd5 {[%clk 0:02:18.8]}
19... Rc8 {[%clk 0:00:50.6]} 20. Bxa6 {[%clk 0:02:17.6]} 20... Bf6 {[%clk
0:00:41.9]} 21. Rxf6 {[%clk 0:02:10.7]} 1-0

[Event "*** Titled Tuesday Blitz"]
[Site "Chess.com"]
[Date "2018.12.04"]
[Round "3"]
[White "GrigorGrigorov"]
[Black "LazyIM"]
[Result "1/2-1/2"]
[WhiteElo "2809"]
[BlackElo "2622"]
[TimeControl "180+2"]
[EndTime "13:34:33 PST"]
[Termination "Game drawn by agreement"]

1. d4 {[%clk 0:03:01.9]} 1... Nf6 {[%clk 0:02:59.9]} 2. c4 {[%clk 0:03:02.8]}
2... g6 {[%clk 0:03:01.4]} 3. Nf3 {[%clk 0:03:03.3]} 3... Bg7 {[%clk 0:03:02.5]}
4. g3 {[%clk 0:03:04.4]} 4... b6 {[%clk 0:03:03.4]} 5. Bg2 {[%clk 0:03:04.8]}
5... Bb7 {[%clk 0:03:04.9]} 6. O-O {[%clk 0:03:05.4]} 6... O-O {[%clk
0:03:06.4]} 7. Nc3 {[%clk 0:03:05.1]} 7... Ne4 {[%clk 0:03:07.7]} 8. Nxe4 {[%clk
0:02:56.5]} 8... Bxe4 {[%clk 0:03:07.2]} 9. Be3 {[%clk 0:02:58]} 9... d5 {[%clk
0:03:04.3]} 10. Rc1 {[%clk 0:02:47.3]} 10... Nc6 {[%clk 0:03:04.8]} 11. Qd2
{[%clk 0:02:31.8]} 11... Qd7 {[%clk 0:03:03.6]} 12. Rfd1 {[%clk 0:02:24.3]}
12... Rfd8 {[%clk 0:03:04.5]} 13. b3 {[%clk 0:01:57.1]} 13... Rac8 {[%clk
0:03:03.6]} 14. c5 {[%clk 0:01:50.6]} 14... a5 {[%clk 0:02:33.9]} 15. Ne1 {[%clk
0:01:28.9]} 15... Bxg2 {[%clk 0:02:32.6]} 16. Kxg2 {[%clk 0:01:29]} 16... b5
{[%clk 0:02:34.1]} 17. Nf3 {[%clk 0:01:28.4]} 17... Qf5 {[%clk 0:02:30.5]} 18.
Bh6 {[%clk 0:01:27.7]} 18... Ra8 {[%clk 0:02:26.9]} 19. Bxg7 {[%clk 0:01:23.2]}
19... Kxg7 {[%clk 0:02:27.2]} 20. a3 {[%clk 0:01:22.9]} 20... h6 {[%clk
0:02:20.8]} 21. Qe3 {[%clk 0:01:20.9]} 21... Re8 {[%clk 0:02:16.9]} 22. Ne5
{[%clk 0:01:19.5]} 22... Nxe5 {[%clk 0:02:15.6]} 23. dxe5 {[%clk 0:01:21.4]}
23... c6 {[%clk 0:02:17]} 24. Rd4 {[%clk 0:01:22.3]} 24... f6 {[%clk 0:02:16.5]}
25. exf6+ {[%clk 0:01:01.1]} 25... exf6 {[%clk 0:02:15.8]} 26. Qf3 {[%clk
0:01:01.8]} 26... Qxf3+ {[%clk 0:02:05.7]} 27. Kxf3 {[%clk 0:01:03]} 27... Re5
{[%clk 0:02:05]} 28. e3 {[%clk 0:00:55.6]} 28... h5 {[%clk 0:02:05.8]} 29. h3
{[%clk 0:00:56.5]} 29... Rh8 {[%clk 0:02:04]} 30. Rcd1 {[%clk 0:00:57.4]} 30...
Rhe8 {[%clk 0:02:00]} 31. R1d2 {[%clk 0:00:58.6]} 31... f5 {[%clk 0:01:57.8]}
32. h4 {[%clk 0:00:58.1]} 32... Kf6 {[%clk 0:01:58.7]} 33. Rd1 {[%clk
0:00:58.8]} 33... Re4 {[%clk 0:01:58]} 1/2-1/2

[Event "*** Titled Tuesday Blitz"]
[Site "Chess.com"]
[Date "2018.12.04"]
[Round "3"]
[White "Firouzja2003"]
[Black "LastGladiator1"]
[Result "1-0"]
[WhiteElo "3011"]
[BlackElo "2675"]
[TimeControl "180+2"]
[EndTime "13:34:36 PST"]
[Termination "Firouzja2003 won by resignation"]

1. e4 {[%clk 0:03:01.9]} 1... c6 {[%clk 0:03:00.7]} 2. d4 {[%clk 0:03:00.1]}
2... d5 {[%clk 0:03:02.2]} 3. e5 {[%clk 0:03:00.7]} 3... Bf5 {[%clk 0:03:03.1]}
4. Nf3 {[%clk 0:03:01.8]} 4... e6 {[%clk 0:03:03.9]} 5. Be2 {[%clk 0:03:01.8]}
5... Nd7 {[%clk 0:03:03.7]} 6. O-O {[%clk 0:03:03.1]} 6... Bg6 {[%clk
0:03:03.4]} 7. c3 {[%clk 0:03:02.7]} 7... Nh6 {[%clk 0:03:04.2]} 8. Nbd2 {[%clk
0:03:03.4]} 8... c5 {[%clk 0:03:05.1]} 9. dxc5 {[%clk 0:03:02.7]} 9... Bxc5
{[%clk 0:02:59.2]} 10. Nb3 {[%clk 0:03:03.7]} 10... Be7 {[%clk 0:02:52.9]} 11.
h3 {[%clk 0:03:02.1]} 11... Nf5 {[%clk 0:02:50.4]} 12. Bf4 {[%clk 0:02:59.5]}
12... Rc8 {[%clk 0:02:49.5]} 13. Bd3 {[%clk 0:03:00.2]} 13... O-O {[%clk
0:02:49]} 14. Qe2 {[%clk 0:02:57.8]} 14... Nc5 {[%clk 0:02:29.9]} 15. Nxc5
{[%clk 0:02:58.2]} 15... Rxc5 {[%clk 0:02:31.3]} 16. Rad1 {[%clk 0:02:54.3]}
16... Rc8 {[%clk 0:02:23]} 17. c4 {[%clk 0:02:51.7]} 17... Qa5 {[%clk
0:01:09.7]} 18. cxd5 {[%clk 0:02:49.7]} 18... exd5 {[%clk 0:01:11.1]} 19. b3
{[%clk 0:02:44.5]} 19... Rfd8 {[%clk 0:00:45.9]} 20. e6 {[%clk 0:02:44.6]} 20...
f6 {[%clk 0:00:46.5]} 21. g4 {[%clk 0:02:35.3]} 21... Nd6 {[%clk 0:00:46.8]} 22.
Bxg6 {[%clk 0:02:36.9]} 22... hxg6 {[%clk 0:00:48.7]} 23. Nh4 {[%clk 0:02:38.8]}
23... Kh7 {[%clk 0:00:43.1]} 24. Bxd6 {[%clk 0:02:11.8]} 24... Rxd6 {[%clk
0:00:37.9]} 25. Qd3 {[%clk 0:02:12.9]} 25... Rxe6 {[%clk 0:00:21.4]} 26. Qxg6+
{[%clk 0:02:13.6]} 26... Kh8 {[%clk 0:00:19.1]} 27. Qf7 {[%clk 0:02:14.6]} 27...
f5 {[%clk 0:00:15.9]} 1-0